fUSD/lending_fUSD_20251223
["ID","MTS","AMOUNT","RATE_DAILY","PERIOD"]
[399577610,1766514912758,-108.74092188,0.00016271,2]
[399577611,1766514917587,-191.25907812,0.00016271,2]
[399577612,1766514917613,-67.95964054,0.00016272,2]
[399577613,1766514920264,-82.04035946,0.00016272,2]
[399577614,1766514920297,-201.51614383,0.00016273,2]
[399577615,1766514922869,-234.65361694,0.00016273,2]
[399577616,1766514925027,-216.44349671,0.00016273,2]
[399577617,1766514926422,-317.41886703,0.00016273,2]
[399577618,1766514928416,-208.48179988,0.00016273,2]
[399577619,1766514932563,-209.08747148,0.00016173,2]
[399577620,1766514932595,-44.62321906,0.00016273,2]
[399577621,1766514935684,-269.84131279,0.00016173,2]
[399577622,1766514938034,-178.22093419,0.00016173,2]
[399577623,1766514938059,-53.06673092,0.00016173,2]
[399577624,1766514941307,-148.11068799,0.00016173,2]
[399577625,1766514941330,-27.80831201,0.00016225,2]
[399577626,1766514943706,-123.19168799,0.00016225,2]
[399577627,1766514943743,-95.33649987,0.00016273,2]
[399577628,1766514945270,-186.20593699,0.00016273,2]
[399577629,1766514949154,-469.29937762,0.00016273,2]
[399577630,1766514950591,-353.7132364,0.00016273,2]
[399577631,1766514952574,-208.38635721,0.00016273,2]
[399577632,1766514957755,-151.0,0.00016249,2]
[399577633,1766514957784,-117.49412869,0.00016273,2]
[399577634,1766514959787,-300.59799323,0.00016273,2]
[399577635,1766514965470,-189.68687234,0.00016272,2]
[399577636,1766514970371,-110.31312766,0.00016272,2]
[399577637,1766514970396,-76.66501522,0.00016272,2]
[399577638,1766514971924,-151.0,0.00016242,2]
[399577639,1766514971949,-109.31312766,0.00016272,2]
[399577640,1766514974024,-301.24115095,0.00016272,2]
[399577641,1766514981131,-62.78070617,0.00016272,2]
[399577642,1766514981160,-314.75703618,0.00016273,2]
[399577643,1766514986185,-605.95025083,0.00016272,2]
[399577644,1766514986214,-22.40420274,0.00016272,2]
[399577645,1766514988944,-151.0,0.00016242,2]
[399577646,1766514988971,-376.78318328,0.00016254,2]
[399577647,1766514991042,-169.43004117,0.00016254,2]
[399577648,1766514992522,-240.55380638,0.00016254,2]
[399577649,1766514997006,-239.92416635,0.00016254,2]
[399577650,1766514999112,-159.41934257,0.00015783,2]
[399577651,1766515000654,-287.21469149,0.00015783,2]
[399577652,1766515004143,-53.36596594,0.00015783,2]
[399577653,1766515004168,-328.87038835,0.00016254,2]
[399577654,1766515006711,-174.70379099,0.00016254,2]
[399577655,1766515008133,-474.95984158,0.00016254,2]
[399577656,1766515008162,-1.45838625,0.00016272,2]
[399577657,1766515014580,-257.63416136,0.00016272,2]
[399577658,1766515017189,-175.35137943,0.00016272,2]
[399577659,1766515018838,-162.00626023,0.00016272,2]
[399577660,1766515020417,-162.64236034,0.00016272,2]
[399577661,1766515020445,-43.70995727,0.00016272,2]
[399577662,1766515022434,-151.0,0.00016232,2]
[399577663,1766515022464,-17.44333521,0.00016272,2]
[399577664,1766515029265,-155.82210314,0.00016272,2]
[399577665,1766515032709,-107.47810486,0.00016272,2]
[399577666,1766515032738,-87.52189514,0.00016272,2]
[399577667,1766515037639,-213.65394262,0.00016272,2]
[399577668,1766515045644,-265.61679532,0.00016272,2]
[399577669,1766515047368,-39.15761775,0.00016272,2]
[399577670,1766515047394,-208.39236359,0.00016272,2]
[399577671,1766515052271,-392.85968118,0.00016272,2]
[399577672,1766515053826,-4.69820606,0.00016272,2]
[399577673,1766515053855,-295.30179394,0.00016272,2]
[399577674,1766515055581,-181.01732946,0.00016272,2]
[399577675,1766515059641,-152.83,0.00016272,2]
[399577676,1766515062300,-166.15267054,0.00016272,2]
[399577677,1766515062331,-118.30147894,0.00016272,2]
[399577678,1766515063747,-182.90159858,0.00016173,2]
[399577679,1766515066602,-26.1858729,0.00016173,2]
[399577680,1766515066631,-189.07088679,0.00016272,2]
[399577681,1766515069296,-3.27609116,0.00016272,2]
[399577682,1766515069327,-149.96864438,0.00016272,2]
[399577683,1766515073671,-187.24535868,0.00016272,2]
[399577684,1766515076088,-163.11636975,0.00016272,2]
[399577685,1766515077917,-105.61987802,0.00016272,2]
[399577686,1766515077946,-132.38012198,0.00016272,2]
[399577687,1766515080006,-272.15512232,0.00016272,2]
[399577688,1766515084731,-195.0,0.00016272,2]
[399577689,1766515091424,-151.0,0.00016238,2]
[399577690,1766515091447,-132.88811799,0.00016271,2]
[399577691,1766515093674,-267.33747421,0.00016271,2]
[399577692,1766515097020,-437.73537449,0.00016271,2]
[399577693,1766515098452,-237.73537449,0.00016271,2]
[399577694,1766515101217,-124.30365882,0.00016271,2]
[399577695,1766515101247,-6.41500653,0.00016272,2]
[399577696,1766515101275,-189.07379348,0.00016272,2]
[399577697,1766515104295,-151.0,0.00016237,2]
[399577698,1766515104324,-58.68785153,0.00016272,2]
[399577699,1766515106372,-358.18860582,0.00016272,2]
[399577700,1766515106402,-146.54818637,0.00016272,2]
[399577701,1766515108780,-290.31214847,0.00016272,2]
[399577702,1766515110184,-169.08991599,0.00016272,2]
[399577703,1766515110212,-56.90578055,0.00016272,2]
[399577704,1766515112668,-182.04815764,0.00016272,2]
[399577705,1766515114264,-366.99631264,0.00016272,2]
[399577706,1766515114295,-20.54376105,0.00016272,2]
[399577707,1766515116134,-200.816033,0.00016272,2]
[399577708,1766515118351,-241.0,0.00016272,2]
[399577709,1766515120572,-151.0,0.00016245,2]
[399577710,1766515120596,-83.77440175,0.00016246,2]
[399577711,1766515125044,-200.94169848,0.00016246,2]
[399577712,1766515132429,-255.23554207,0.00016246,2]
[399577713,1766515134646,-153.54788473,0.00016246,2]
[399577714,1766515136242,-182.8505077,0.00016246,2]
[399577715,1766515141600,-403.50505732,0.00016246,2]
[399577716,1766515144082,-258.0129793,0.00016246,2]
[399577717,1766515150615,-196.67112505,0.00016246,2]
[399577718,1766515154478,-345.51760709,0.00016246,2]
[399577719,1766515157520,-267.35514473,0.00016246,2]
[399577720,1766515160639,-201.74530311,0.00016246,2]
[399577721,1766515165709,-162.31733358,0.00016246,2]
[399577722,1766515167843,-224.35526411,0.00016246,2]
[399577723,1766515169946,-188.27973739,0.00016246,2]
[399577724,1766515172990,-387.92797861,0.00016246,2]
[399577725,1766515175583,-198.61702734,0.00016246,2]
[399577726,1766515177673,-343.48435959,0.00016246,2]
[399577727,1766515180650,-159.50087562,0.00016246,2]
[399577728,1766515182680,-295.62484903,0.00016246,2]
[399577729,1766515182706,-44.34548086,0.00016271,2]
[399577730,1766515185321,-255.65451914,0.00016271,2]
[399577731,1766515185346,-163.96901314,0.00016271,2]
[399577732,1766515188847,-183.40450248,0.00016271,2]
[399577733,1766515190720,-202.62648438,0.00016271,2]
[399577734,1766515190745,-95.71490905,0.00016271,2]
[399577735,1766515197576,-168.800126,0.00016271,2]
[399577736,1766515199615,-35.48496495,0.00016271,2]
[399577737,1766515199639,-291.99535568,0.00016272,2]
[399577738,1766515201622,-193.0,0.00016173,2]
[399577739,1766515205316,-374.65291848,0.00016173,2]
[399577740,1766515208014,-168.80583206,0.00016173,2]
[399577741,1766515213551,-198.67383272,0.00015783,2]
[399577742,1766515215048,-301.32616728,0.00015783,2]
[399577743,1766515215074,-91.60669313,0.00016173,2]
[399577744,1766515217142,-223.72268754,0.00016173,2]
[399577745,1766515220653,-383.34445205,0.00016173,2]
[399577746,1766515227620,-165.85938657,0.00016173,2]
[399577747,1766515229922,-203.9016105,0.00016173,2]
[399577748,1766515232078,-201.49824492,0.00016173,2]
[399577749,1766515239144,-191.95324736,0.00016173,2]
[399577750,1766515241128,-198.39875669,0.00016173,2]
[399577751,1766515243868,-259.69356779,0.00016173,2]
[399577752,1766515247013,-278.69518617,0.00016173,2]
[399577753,1766515249617,-328.48963651,0.00016173,2]
[399577754,1766515251053,-231.98273053,0.00016173,2]
[399577755,1766515257456,-239.84167299,0.00016173,2]
[399577756,1766515257479,-49.06848265,0.00016173,2]
[399577757,1766515261097,-300.0,0.00016173,2]
[399577758,1766515264013,-300.0,0.00016172,2]
[399577759,1766515264038,-107.90894343,0.00016173,2]
[399577760,1766515268681,-217.24974914,0.00016173,2]
[399577761,1766515271402,-193.23795303,0.00016173,2]
[399577762,1766515273402,-225.45878475,0.00016173,2]
[399577763,1766515277519,-362.74421901,0.00016173,2]
[399577764,1766515280204,-338.14115377,0.00016173,2]
[399577765,1766515283805,-210.39862458,0.00016173,2]
[399577766,1766515287687,-601.12853659,0.00016173,2]
[399577767,1766515290568,-289.60137542,0.00016173,2]
[399577768,1766515293327,-151.40513183,0.00016173,2]
[399577769,1766515295930,-159.40377013,0.00015947,2]
[399577770,1766515299085,-154.65696326,0.00015947,2]
[399577771,1766515301612,-99.55626661,0.00015947,2]
[399577772,1766515301635,-107.03934256,0.00016173,2]
[399577773,1766515304899,-245.4928499,0.00016173,2]
[399577774,1766515308650,-198.47416993,0.00016173,2]
[399577775,1766515313113,-329.15134946,0.00016173,2]
[399577776,1766515315798,-312.35765271,0.00016173,2]
[399577778,1766515318405,-225.32501371,0.00016173,2]
[399577779,1766515319879,-161.72026261,0.00016173,2]
[399577780,1766515324760,-300.0,0.00016172,2]
[399577781,1766515324787,-21.12874033,0.00016173,2]
[399577782,1766515328966,-174.67189407,0.00016173,2]
[399577783,1766515567159,-279.20584886,0.00013699,2]
[399577787,1766515821552,-163.83415114,0.00013699,2]
[399577788,1766515821578,-327.71571798,0.00013699,2]
[399577789,1766515821604,-85.03330005,0.00013699,2]
[399577790,1766515824801,-177.96669995,0.00013699,2]
[399577791,1766515824824,-141.14687268,0.00015068,2]
[399577792,1766515829861,-108.85312732,0.00015068,2]
[399577793,1766515829888,-99.45524029,0.00015536,3]
[399577801,1766515832004,-899.54475971,0.00015536,3]
[399577802,1766515832016,-200.0,0.00015567,2]
[399577803,1766515832027,-166.66,0.00015593,2]
[399577804,1766515832037,-500.0,0.00015783,2]
[399577805,1766515832048,-166.66,0.00015921,2]
[399577806,1766515832058,-300.0,0.00015991,2]
[399577807,1766515832070,-238.0,0.00015991,2]
[399577808,1766515832087,-1200.0,0.00015991,2]
[399577809,1766515832100,-300.0,0.00015991,2]
[399577810,1766515832115,-15829.8415346,0.00015992,2]
[399577812,1766515832125,-79065.7861974,0.00016073,2]
[399577814,1766515832140,-858.36534854,0.00016073,2]
[399577816,1766515832152,-10469.45115905,0.00016073,2]
[399577818,1766515832170,-1125.58547845,0.00016073,2]
[399577821,1766515832192,-102906.49769374,0.00016073,2]
[399577823,1766515838048,-363.9899998,0.00016073,2]
[399577824,1766515838061,-991.5199999,0.00016073,2]
[399577825,1766515838104,-254464.31563441,0.00016073,2]
[399577826,1766515838157,-18827.66812267,0.00016073,2]
[399577827,1766515838171,-17600.03785079,0.00016073,2]
[399577828,1766515838185,-347.40862778,0.00016073,2]
[399577902,1766515840054,-588.86005303,0.00016073,2]
[399577903,1766515840071,-2335.49444955,0.00016073,2]
[399577904,1766515840106,-19999.68521397,0.00016073,2]
[399577915,1766515843294,-1.7e-07,0.00016073,2]
[399577916,1766515843390,-353.74500003,0.00016073,2]
[399577917,1766515843424,-681.27642147,0.00016073,2]
[399577918,1766515843491,-34570.87084027,0.00016073,2]
[399577919,1766515843505,-23534.42497716,0.00016073,2]
[399577920,1766515843520,-14161.35483276,0.00016073,2]
[399577921,1766515843532,-1939.62105298,0.00016073,2]
[399577922,1766515843544,-330.28996395,0.00016073,2]
[399577923,1766515843556,-533.77400246,0.00016073,2]
[399577924,1766515843568,-1909.89620159,0.00016073,2]
[399577932,1766515846032,-892.50947183,0.00016073,2]
[399577938,1766515846087,-6207.06459416,0.00016073,2]
[399577940,1766515846100,-379.68499798,0.00016073,2]
[399577951,1766515846249,-7181.94319293,0.00016073,2]
[399577952,1766515846261,-299.22762627,0.00016073,2]
[399577953,1766515846304,-4106.00461,0.00016073,2]
[399577954,1766515846316,-3919.033166,0.00016073,2]
[399577955,1766515846358,-1292.52388058,0.00016073,2]
[399577963,1766516505557,304.2514391,0.00010012,2]
[399577964,1766516506220,2909.41650166,0.00010012,2]
[399577967,1766517032078,-1119.94014192,0.00015349,2]
[399577968,1766517032136,-732.47985808,0.00015349,2]
[399577969,1766517032147,-150.0,0.00015387,2]
[399577970,1766517032158,-181.969832,0.00015628,2]
[399577971,1766517032168,-200.0,0.00015728,2]
[399577972,1766517032179,-500.0,0.00015783,2]
[399577973,1766517032189,-500.0,0.00015783,2]
[399577974,1766517032199,-426.22579654,0.00015826,2]
[399577975,1766517032209,-1200.0,0.00015861,2]
[399577976,1766517032220,-509.41843808,0.00015862,2]
[399577977,1766517032232,-690.58156192,0.00015862,2]
[399577978,1766517032242,-11.95606224,0.00015862,2]
[399577979,1766517032254,-288.04393776,0.00015862,2]
[399577980,1766517032270,-300.0,0.00015862,2]
[399577981,1766517032282,-8909.8215106,0.00015863,2]
[399577982,1766517032292,-5792.78929795,0.00015863,2]
[399577983,1766517032305,-1472.73296337,0.00015863,2]
[399577984,1766517032318,-600.11131002,0.00015863,2]
[399577985,1766517032331,-8108.35026846,0.00015863,2]
[399577986,1766517032349,-1167.11469175,0.00015863,2]
[399577987,1766517032359,-500.0,0.00015864,2]
[399577988,1766517032369,-208.48179988,0.00015864,2]
[399577989,1766517032381,-500.0,0.00015864,2]
[399577990,1766517032391,-587.94621572,0.00015864,2]
[399577991,1766517032401,-500.0,0.00015864,2]
[399577992,1766517032411,-500.0,0.00015864,2]
[399577993,1766517032422,-470.1815403,0.00015864,2]
[399577994,1766517032432,-500.0,0.00015864,2]
[399577995,1766517032445,-500.0,0.00015864,2]
[399577996,1766517032455,-343.55229028,0.00015864,2]
[399577997,1766517032466,-500.0,0.00015864,2]
[399577998,1766517032476,-500.0,0.00015864,2]
[399577999,1766517032488,-500.0,0.00015864,2]
[399578000,1766517032498,-500.0,0.00015864,2]
[399578001,1766517032508,-500.0,0.00015864,2]
[399578002,1766517032521,-500.0,0.00015864,2]
[399578003,1766517032531,-500.0,0.00015864,2]
[399578004,1766517032542,-500.0,0.00015864,2]
[399578005,1766517032552,-500.0,0.00015864,2]
[399578006,1766517032563,-500.0,0.00015864,2]
[399578007,1766517032573,-500.0,0.00015864,2]
[399578008,1766517032583,-500.0,0.00015864,2]
[399578009,1766517032593,-500.0,0.00015864,2]
[399578010,1766517032603,-200.0,0.00015864,2]
[399578011,1766517032613,-500.0,0.00015864,2]
[399578012,1766517032624,-500.0,0.00015864,2]
[399578013,1766517032641,-500.0,0.00015864,2]
[399578014,1766517032651,-500.0,0.00015864,2]
[399578015,1766517032661,-500.0,0.00015864,2]
[399578016,1766517032672,-500.0,0.00015864,2]
[399578017,1766517032682,-500.0,0.00015864,2]
[399578018,1766517032691,-500.0,0.00015864,2]
[399578019,1766517032702,-500.0,0.00015864,2]
[399578020,1766517032713,-500.0,0.00015864,2]
[399578021,1766517032723,-500.0,0.00015864,2]
[399578022,1766517032733,-500.0,0.00015864,2]
[399578023,1766517032743,-500.0,0.00015864,2]
[399578024,1766517032753,-500.0,0.00015864,2]
[399578025,1766517032763,-500.0,0.00015864,2]
[399578026,1766517032774,-500.0,0.00015864,2]
[399578027,1766517032784,-500.0,0.00015864,2]
[399578028,1766517032794,-500.0,0.00015864,2]
[399578029,1766517032804,-500.0,0.00015864,2]
[399578030,1766517032814,-500.0,0.00015864,2]
[399578031,1766517032824,-500.0,0.00015864,2]
[399578032,1766517032834,-500.0,0.00015864,2]
[399578033,1766517032844,-500.0,0.00015864,2]
[399578034,1766517032854,-500.0,0.00015864,2]
[399578035,1766517032865,-500.0,0.00015864,2]
[399578036,1766517032875,-500.0,0.00015864,2]
[399578037,1766517032885,-500.0,0.00015864,2]
[399578038,1766517032894,-500.0,0.00015864,2]
[399578039,1766517032904,-500.0,0.00015864,2]
[399578040,1766517032914,-500.0,0.00015864,2]
[399578041,1766517032924,-500.0,0.00015864,2]
[399578042,1766517032934,-500.0,0.00015864,2]
[399578043,1766517032945,-154.67274905,0.00015864,2]
[399578044,1766517032955,-500.0,0.00015864,2]
[399578045,1766517032965,-500.0,0.00015864,2]
[399578046,1766517032975,-500.0,0.00015864,2]
[399578047,1766517032986,-500.0,0.00015864,2]
[399578048,1766517033000,-500.0,0.00015864,2]
[399578049,1766517033011,-500.0,0.00015864,2]
[399578050,1766517033021,-500.0,0.00015864,2]
[399578051,1766517033031,-500.0,0.00015864,2]
[399578052,1766517033042,-500.0,0.00015864,2]
[399578053,1766517033052,-500.0,0.00015864,2]
[399578054,1766517033062,-500.0,0.00015864,2]
[399578055,1766517033072,-881.71427296,0.00015864,2]
[399578056,1766517033083,-881.71427296,0.00015864,2]
[399578057,1766517033092,-881.71427296,0.00015864,2]
[399578058,1766517033103,-881.71427296,0.00015864,2]
[399578059,1766517033113,-881.71427296,0.00015864,2]
[399578060,1766517033122,-881.71427296,0.00015864,2]
[399578061,1766517033134,-881.71427296,0.00015864,2]
[399578062,1766517033145,-881.71427296,0.00015864,2]
[399578063,1766517033155,-881.71427296,0.00015864,2]
[399578064,1766517033165,-881.71427296,0.00015864,2]
[399578065,1766517033176,-881.71427296,0.00015864,2]
[399578066,1766517033186,-881.71427296,0.00015864,2]
[399578067,1766517033196,-881.71427296,0.00015864,2]
[399578068,1766517033206,-881.71427296,0.00015864,2]
[399578069,1766517033216,-881.71427296,0.00015864,2]
[399578070,1766517033226,-881.71427296,0.00015864,2]
[399578071,1766517033238,-881.71427296,0.00015864,2]
[399578072,1766517033248,-881.71427296,0.00015864,2]
[399578073,1766517033259,-881.71427296,0.00015864,2]
[399578074,1766517033269,-881.71427296,0.00015864,2]
[399578075,1766517033279,-881.71427296,0.00015864,2]
[399578076,1766517033289,-881.71427296,0.00015864,2]
[399578077,1766517033299,-881.71427296,0.00015864,2]
[399578078,1766517033310,-881.71427296,0.00015864,2]
[399578079,1766517033320,-881.71427296,0.00015864,2]
[399578080,1766517033331,-881.71427296,0.00015864,2]
[399578081,1766517033341,-881.71427296,0.00015864,2]
[399578082,1766517033352,-881.71427296,0.00015864,2]
[399578083,1766517033365,-881.71427296,0.00015864,2]
[399578084,1766517033375,-881.71427296,0.00015864,2]
[399578085,1766517033386,-881.71427296,0.00015864,2]
[399578086,1766517033397,-881.71427298,0.00015864,2]
[399578087,1766517033407,-881.71427298,0.00015864,2]
[399578088,1766517033417,-881.71427298,0.00015864,2]
[399578089,1766517033427,-881.71427298,0.00015864,2]
[399578090,1766517033440,-881.71427298,0.00015864,2]
[399578091,1766517033451,-881.71427298,0.00015864,2]
[399578092,1766517033461,-881.71427298,0.00015864,2]
[399578093,1766517033471,-4425.73740174,0.00015865,2]
[399578094,1766517033486,-388.29480477,0.00015865,2]
[399578097,1766517033498,-9797.0,0.00015865,2]
[399578099,1766517033512,-328.0184482,0.00015865,2]
[399578101,1766517033526,-23576.0,0.00015865,2]
[399578103,1766517033539,-7896.6176371,0.00015865,2]
[399578105,1766517033553,-500.0,0.00015865,2]
[399578112,1766517038210,-984.039998,0.00015865,2]
[399578113,1766517038263,-389.43608,0.00015865,2]
[399578114,1766517038276,-2560.5904227,0.00015865,2]
[399578115,1766517038288,-91119.35126438,0.00015865,2]
[399578116,1766517038316,-254464.31563441,0.00015865,2]
[399578117,1766517038372,-302.64238328,0.00015865,2]
[399578118,1766517038427,-629.8630819,0.00015865,2]
[399578122,1766517040215,-66270.30777562,0.00015865,2]
[399578123,1766517040268,-2983.0180268,0.00015865,2]
[399578124,1766517040322,-382.58740799,0.00015865,2]
[399578128,1766517043519,-345.5261616,0.00015865,2]
[399578129,1766517043532,-331.8895825,0.00015865,2]
[399578130,1766517043543,-604.792551,0.00015865,2]
[399578138,1766517046248,-409079.15856017,0.00015865,2]
[399578139,1766517046407,-17003.70028845,0.00015865,2]
[399578140,1766517046420,-92379.64019877,0.00015865,2]
[399578141,1766517046461,-1720.0,0.00015865,2]
[399578148,1766517706480,-276.0,0.0001515,2]
[399578149,1766517706513,-576.0,0.0001515,2]
[399578150,1766517706544,-500.0,0.00015783,2]
[399578151,1766517706575,-500.0,0.00015783,2]
[399578152,1766517707079,-198.94914877,0.00015836,2]
[399578153,1766517707120,-1200.0,0.00015863,2]
[399578154,1766517707152,-1200.0,0.00015863,2]
[399578155,1766517707180,-300.0,0.00015863,2]
[399578156,1766517707210,-193.0,0.00015864,2]
[399578157,1766517707230,-276.0,0.00015864,2]
[399578158,1766517707243,-576.0,0.00015864,2]
[399578159,1766517707255,-500.0,0.00015864,2]
[399578160,1766517707272,-193.45626587,0.00015864,2]
[399578161,1766517707283,-300.0,0.00015864,2]
[399578162,1766517707293,-6.54373413,0.00015865,2]
[399578163,1766517707304,-198.94914877,0.00015865,2]
[399578164,1766517707397,-166.67,0.00015643,2]
[399578165,1766517707424,-1200.0,0.00015865,2]
[399578166,1766517707442,-1200.0,0.00015865,2]
[399578167,1766517707483,-1068.03059228,0.00015865,2]
[399578168,1766517707522,-300.0,0.00015865,2]
[399578169,1766517707536,-193.0,0.00015865,2]
[399578170,1766517707553,-112.11170246,0.00015865,2]
[399578171,1766517707596,-2741.17288702,0.00015865,2]
[399578172,1766517707610,-4517.66422596,0.00015865,2]
[399578173,1766517707620,-5482.34577404,0.00015865,2]
[399578174,1766517707633,-10000.01,0.00015865,2]
[399578175,1766517707646,-10000.01,0.00015865,2]
[399578176,1766517707659,-166.67,0.00015865,2]
[399578177,1766517707685,-9666.67,0.00015865,2]
[399578178,1766517707703,-8931.97940772,0.00015865,2]
[399578179,1766517707732,-7258.83711298,0.00015865,2]
[399578180,1766517707744,-10000.01,0.00015865,2]
[399578181,1766517707756,-3512.82159636,0.00015865,2]
[399578182,1766517707766,-6487.18840364,0.00015865,2]
[399578183,1766517709307,-3701.13663814,0.00015865,2]
[399578184,1766517709322,-2597.73672372,0.00015865,2]
[399578185,1766517709344,-279.1781117,0.00015865,2]
[399578186,1766517709362,-1262.6845768,0.00015865,2]
[399578187,1766517709373,-443.85292262,0.00015865,2]
[399578188,1766517709383,-1715.42102702,0.00015865,2]
[399578189,1766517730619,-10000.01,0.00015865,2]
[399578190,1766517730904,-10000.01,0.00015865,2]
[399578191,1766517731049,-10000.01,0.00015865,2]
[399578192,1766517731141,-10000.01,0.00015865,2]
[399578193,1766517736509,-10000.01,0.00015865,2]
[399578194,1766517736625,-10000.01,0.00015865,2]
[399578195,1766517736716,-10000.01,0.00015865,2]
[399578196,1766517737529,-10000.01,0.00015865,2]
[399578197,1766517760616,500.0,0.00015764,2]
[399578198,1766517760647,354.83497091,0.00015764,2]
[399578199,1766517760684,500.0,0.00015764,2]
[399578200,1766517760726,500.51423728,0.00015764,2]
[399578201,1766517760766,500.0,0.00015764,2]
[399578202,1766517760813,300.0,0.00015764,2]
[399578203,1766517760848,500.0,0.00015764,2]
[399578204,1766517760900,500.0,0.00015764,2]
[399578205,1766517760947,500.0,0.00015764,2]
[399578206,1766517760996,500.0,0.00015764,2]
[399578207,1766517761038,500.0,0.00015764,2]
[399578208,1766517761096,500.0,0.00015764,2]
[399578209,1766517761145,500.0,0.00015764,2]
[399578210,1766517761195,500.0,0.00015764,2]
[399578211,1766517761262,500.0,0.00015764,2]
[399578212,1766517772181,500.0,0.00015764,2]
[399578213,1766517772231,306.32786834,0.00015764,2]
[399578214,1766517787246,2038.33292347,7.837e-05,2]
[399578215,1766517787271,631.32707653,7.837e-05,2]
[399578216,1766517787468,2669.66,8.249e-05,2]
[399578217,1766517787674,2669.66,8.662e-05,2]
[399578218,1766517787867,4029.36292347,7.945e-05,2]
[399578219,1766517787905,953.36993753,7.945e-05,2]
[399578220,1766517787950,2669.66,9.074e-05,2]
[399578221,1766517788100,2669.66,9.487e-05,2]
[399578222,1766517788322,2669.66,9.899e-05,2]
[399578224,1766517792374,-807.79220057,0.00010312,2]
[399578225,1766517794437,-278.53011109,0.00010312,2]
[399578226,1766517796039,-161.53292789,0.00010312,2]
[399578227,1766517799914,-214.2956745,0.00010312,2]
[399578228,1766517803140,-926.85097741,0.00010312,2]
[399578229,1766517805937,-280.65810854,0.00010312,2]
[399578230,1766517805962,-92.45016098,0.00010724,2]
[399578231,1766517808988,-223.13593148,0.00010724,2]
[399578232,1766517811113,-320.21220242,0.00010724,2]
[399578233,1766517814945,-174.81199944,0.00010724,2]
[399578234,1766517817488,-159.41244379,0.00010724,2]
[399578235,1766517819666,-173.98420348,0.00010724,2]
[399578236,1766517821749,-277.50028548,0.00010724,2]
[399578237,1766517823839,-278.54693503,0.00010724,2]
[399578238,1766517825973,-206.18976485,0.00010724,2]
[399578239,1766517827547,-171.14716267,0.00010724,2]
[399578240,1766517829660,-294.49080618,0.00010724,2]
[399578241,1766517833301,-263.16667018,0.00010724,2]
[399578242,1766517835421,-34.61143402,0.00010724,2]
[399578243,1766517835446,-240.72728583,0.00011137,2]
[399578244,1766517837958,-439.54473917,0.00011137,2]
[399578245,1766517841285,-251.80995595,0.00011137,2]
[399578246,1766517849026,-249.12796229,0.00011137,2]
[399578247,1766517853835,-300.0,0.00011137,2]
[399578248,1766517855556,-155.26093895,0.00011137,2]
[399578249,1766517857035,-342.9528579,0.00011137,2]
[399578250,1766517859577,-329.64617746,0.00011137,2]
[399578251,1766517861050,-182.34796988,0.00011137,2]
[399578252,1766517862645,-178.24211257,0.00011137,2]
[399578253,1766517862673,-55.65282586,0.00011549,2]
[399578254,1766517864170,-321.830218,0.00011549,2]
[399578255,1766517866438,-411.14805633,0.00011549,2]
[399578256,1766517870302,-343.45562184,0.00011549,2]
[399578257,1766517875024,-359.52573798,0.00011549,2]
[399578258,1766517876570,-486.11982288,0.00011549,2]
[399578259,1766517881351,-248.35426104,0.00011549,2]
[399578260,1766517885886,-219.3492423,0.00011549,2]
[399578261,1766517887866,-224.22421377,0.00011549,2]
[399578262,1766517887890,-153.76964218,0.00011962,2]
[399578263,1766517890678,-268.89198256,0.00011962,2]
[399578264,1766517893688,-263.72438278,0.00011962,2]
[399578265,1766517896900,-164.42133943,0.00011962,2]
[399578266,1766517899004,-228.57726909,0.00011962,2]
[399578267,1766517902215,-199.77480922,0.00011962,2]
[399578268,1766517903894,-200.0,0.00011962,2]
[399578269,1766517905080,-202.20029535,0.00011962,2]
[399578270,1766517907055,-222.68716492,0.00011962,2]
[399578271,1766517908608,-219.63367838,0.00011962,2]
[399578272,1766517913273,-177.37145397,0.00011962,2]
[399578273,1766517916104,-182.57397268,0.00011962,2]
[399578274,1766517929770,-186.03400944,0.00011962,2]